Cogmind - Beta 14 @@@ ROGUE MODE // 2024.09.01 @ 09:28:11 Player: Daffa0360 Result: Destroyed by 7O-4MD(R) with Subdweller Machine Gun Performance ------------- Evolutions (0) 0 Regions Visited (2) 400 Robots Destroyed (24) 120 Value Destroyed (527) 527 Prototype IDs (0) 0 Alien Tech Used (0) 0 Bonus (0) 0 TOTAL SCORE: 1047 Bonus ------- None Cogmind --------- Core Integrity 0/250 Matter 290/300 Energy 100/100 System Corruption 0% Temperature Cool (0) Movement Rolling (150) Ox4 Location -10/Subcaves Parts ------- > --- POWER (1) -------- (None) > --- PROPULSION (2) --- Subdweller Monowheel > --- UTILITY (2) ------ Huge Storage Unit > --- WEAPON (2) ------- Makeshift Hammer > --- INVENTORY (25) --- Compact Wheel Medium Matter Pod (100) Subdweller Optics Improved Terrain Scanner Seismic Detector Scrap Shield Hacking Suite Subdweller Machine Gun SUBCON Basin (Full) Peak State ------------ > --- POWER ------------ Ion Engine > --- PROPULSION ------- Compact Wheel Subdweller Monowheel > --- UTILITY ---------- Huge Storage Unit Seismic Detector > --- WEAPON ----------- Riot Gun Makeshift Hammer > --- INVENTORY -------- Compact Wheel Subdweller Monowheel Medium Matter Pod Subdweller Optics Improved Terrain Scanner Targeting Computer Scrap Shield Hacking Suite Subdweller Machine Gun SUBCON Basin [Rating: 32] Favorites ----------- Power Ion Engine Engine Ion Engine Propulsion Compact Wheel Leg Aluminum Leg Wheel Compact Wheel Utility Huge Storage Unit Device Seismic Detector Storage Huge Storage Unit Weapon Light Assault Rifle Energy Gun Small Laser Ballistic Gun Light Assault Rifle Special Weapon Mining Laser Impact Weapon Makeshift Hammer Build | -11 -10 -10 ------- Run | Yrd Mat Sub Slots Evolved . | . . . Power . | . . . Propulsion . | . . . Utility . | . . . Weapon . | . . . Parts Attached 24 | . 8 16 Power 1 | . . 1 Engine 1 | . . 1 Core . | . . . Reactor . | . . . Propulsion 10 | . 4 6 Treads . | . . . Leg . | . . . Wheel 10 | . 4 6 Hover . | . . . Flight . | . . . Utility 4 | . 2 2 Device 3 | . 1 2 Storage 1 | . 1 . Processor . | . . . Hackware . | . . . Protection . | . . . Artifact . | . . . Weapon 9 | . 2 7 Energy Gun 2 | . . 2 Energy Cannon . | . . . Ballistic Gun 3 | . 1 2 Ballistic Cannon . | . . . Launcher . | . . . Special Weapon 2 | . 1 1 Impact Weapon 2 | . . 2 Slashing Weapon . | . . . Piercing Weapon . | . . . Special Melee Weapon . | . . . Unidentified Prototypes . | . . . Parts Lost 9 | . 1 8 Power 2 | . . 2 Propulsion 4 | . 1 3 Utility 1 | . . 1 Weapon 2 | . . 2 Highest Loss Streak 4 | . 1 4 To Critical Strikes . | . . . Average Slot Usage (%) 97 | . 97 97 Engine 13 | . 14 13 Leg 1 | . 4 . Wheel 26 | . 22 27 Device 12 | . 12 12 Storage 14 | . 14 14 Energy Gun 7 | . . 11 Ballistic Gun 13 | . 27 5 Impact Weapon 5 | . . 8 Peak Build Rating 32 | 6 8 32 Average Rating 18 | 6 7 26 On Entrance 6 | 6 6 8 Naked Turns . | . . . Heaviest Build 92 | 11 87 92 Greatest Support 36 | 20 32 36 Greatest Overweight (x) 8 | . 8 5 Average Overweight (x) 2 | . 3 2 Largest Inventory Capacity 25 | 8 25 25 Average Capacity 23 | 8 22 25 Most Carried 25 | 7 13 25 Average Carried 17 | 6 9 23 Final Capacity 25 | 8 25 25 Final Carried 24 | 7 12 24 Class Distribution -------------------- 100% | Mutant Dominant Class ---------------- Mutant | -10/Materials Mutant | -10/Subcaves Resources | -11 -10 -10 ----------- Run | Yrd Mat Sub Matter Collected 747 | 256 294 197 Remotely . | . . . Salvage Created 753 | 189 323 241 Parts 58 | 13 27 18 Haulers Intercepted 1 | . 1 . Recyclers Shooed 1 | . 1 . Parts Field Recycled . | . . . Retrieved Matter . | . . . Parts Self-Destructed 2 | . . 2 Prevented . | . . . Kills | -11 -10 -10 ------- Run | Yrd Mat Sub Combat Hostiles Destroyed 15 | . 9 6 Melee 3 | . . 3 Guns 10 | . 9 1 Classes Destroyed 8 | 2 5 1 Tunneler 5 | 5 . . Hauler 1 | . 1 . Recycler 1 | 1 . . Operator 1 | . 1 . Watcher 1 | . 1 . Swarmer 5 | . 5 . Grunt 4 | . 4 . Subdweller 6 | . . 6 Best Kill Streak 4 | 4 3 2 Combat Bots Only 3 | . 3 2 Max Kills in Single Turn 1 | 1 1 1 Gunslinging . | . . . Exploded . | . . . Melee 1 | . . 1 Uniques/NPCs Destroyed . | . . . Combat | -11 -10 -10 -------- Run | Yrd Mat Sub Hostile Shots Fired 83 | . 48 35 Missed 23 | . 13 10 Damage Taken 1073 | . 351 722 Core 250 | . 57 193 Absorbed by Shields . | . . . Core Remaining (%) 100 | 100 . . Volleys Fired 78 | 14 45 19 Largest 2 | 2 2 2 Hottest 100 | 40 100 100 Shots Fired 144 | 28 88 28 Gun 134 | 28 86 20 Cannon . | . . . Launcher . | . . . Special 10 | . 2 8 Kinetic 125 | 28 86 11 Thermal 14 | . 2 12 Explosive . | . . . Electromagnetic 5 | . . 5 Robot Hit Streak 18 | 7 9 18 Robot Miss Streak 5 | 3 5 2 Penetration Max . | . . . Secondary Targets 2 | . 2 . Max Gunslinging Chain 1 | . 1 . Shots Hit Robots 92 | 16 49 27 Core Hits 39 | 9 23 7 Critical Kills 2 | . 2 . Critical Parts Destroyed 3 | 2 . 1 Critical Strikes 5 | 2 2 1 Destroy 4 | 2 2 . Smash 1 | . . 1 Melee Attacks 19 | . . 19 Impact 19 | . . 19 Slashing . | . . . Piercing . | . . . Sneak Attacks 1 | . . 1 Combat Hostiles 1 | . . 1 Follow-up Attacks . | . . . Damage Inflicted 1429 | 171 513 745 Guns 934 | 171 513 250 Cannons . | . . . Explosions . | . . . Melee 495 | . . 495 Ramming . | . . . Kinetic 814 | 171 513 130 Thermal 32 | . . 32 Explosive . | . . . Electromagnetic 88 | . . 88 Impact 495 | . . 495 Slashing . | . . . Piercing . | . . . Highest Corruption . | . . . Average Corruption . | . . . Corruption Purged . | . . . Corruption Blocked . | . . . Overload Shots . | . . . Overflow Damage 64 | . . 64 Projectiles . | . . . Explosions . | . . . Melee 64 | . . 64 Knockbacks 4 | . . 4 Impact 4 | . . 4 Kinetic . | . . . Secondary . | . . . Self-Inflicted Damage . | . . . Shots . | . . . Rammed . | . . . Targets Rammed . | . . . Kicked . | . . . Crushed . | . . . Highest Temperature 27 | . 27 . Average Temperature 12 | . 12 . Received Heat Transfer 207 | . 105 102 Siege Activations . | . . . Robots Corrupted 2 | . . 2 Combat Hostiles 2 | . . 2 Parts Fried 2 | . . 2 Impact Corruptions 3 | . . 3 Robots Melted . | . . . Combat Hostiles . | . . . Parts Melted . | . . . Heat Transferred 75 | . . 75 Parts Sabotaged . | . . . Parts Stolen . | . . . Parts Stripped . | . . . Power Chain Reactions . | . . . Alert | -11 -10 -10 ------- Run | Yrd Mat Sub Peak Influence 170 | 30 170 . Initial 19 | . 19 . Average 52 | 16 58 . Maximum Alert Level . | . . . Low Security (%) 100 | 100 100 . Level 1 . | . . . Level 2 . | . . . Level 3 . | . . . Level 4 . | . . . Level 5 . | . . . High Security . | . . . Max Security . | . . . Squads Dispatched 2 | . 2 . Investigation 1 | . 1 . Extermination . | . . . Reinforcement 1 | . 1 . Assault . | . . . Garrison . | . . . Intercept . | . . . Searches Triggered . | . . . Construction Impeded . | . . . Haulers Reinforced . | . . . Active Scanning Responses . | . . . Cargo Convoy Interrupts . | . . . Stealth | -11 -10 -10 --------- Run | Yrd Mat Sub Distress Signals . | . . . Communications Jammed . | . . . Distress Signals . | . . . Times Spotted 30 | . 16 14 Peak Tracking Total 4 | . 4 3 Tactical Retreats 8 | . 5 3 Traps | -11 -10 -10 ------- Run | Yrd Mat Sub Traps Triggered 2 | . 1 1 Indirectly . | . . . Trap Hack Attempts . | . . . Triggered . | . . . Disarmed . | . . . Reprogrammed . | . . . Reused . | . . . Traps Extracted . | . . . Installed . | . . . Triggered 1 | . . 1 Machines | -11 -10 -10 ---------- Run | Yrd Mat Sub Machines Disabled . | . . . Max in Single Turn . | . . . Machines Repaired . | . . . Machines Dismantled . | . . . Machines Sabotaged . | . . . Overloaded Fab Kills . | . . . Hacking | -11 -10 -10 --------- Run | Yrd Mat Sub Machines Accessed 5 | . 3 2 Terminals 3 | . 3 . Fabricators . | . . . Repair Stations . | . . . Recycling Units . | . . . Scanalyzers . | . . . Garrison Access . | . . . Total Hacks 10 | . 7 3 Successful 7 | . 4 3 Failed 3 | . 3 . Catastrophic . | . . . Database Lockouts . | . . . Manual 3 | . 3 . Terminals 7 | . 7 . Fabricators . | . . . Repair Stations . | . . . Recycling Units . | . . . Scanalyzers . | . . . Garrison Access . | . . . Terminal Hacks 7 | . 4 3 Record 2 | . 1 1 Open Door 1 | . . 1 Alert Level 1 | . 1 . Unreport Threat 1 | . 1 . Locate Traps 1 | . 1 . Release Object 1 | . . 1 Fabricator Hacks . | . . . Repair Station Hacks . | . . . Recycling Unit Hacks . | . . . Scanalyzer . | . . . Garrison Access Hacks . | . . . Unauthorized Hacks . | . . . Terminals . | . . . Fabricators . | . . . Repair Stations . | . . . Recycling Units . | . . . Scanalyzers . | . . . Garrison Access . | . . . Data Cores Recovered . | . . . Used . | . . . Hacking Detections 2 | . 2 . Full Trace Events . | . . . Feedback Events . | . . . Feedback Blocked . | . . . Robot Schematics Acquired . | . . . Robots Built . | . . . Authchips . | . . . Time . | . . . Total Robot Build Rating . | . . . Part Schematics Acquired . | . . . Parts Built . | . . . Authchips . | . . . Time . | . . . Total Part Build Rating . | . . . Parts Repaired . | . . . Time . | . . . Parts Recycled . | . . . Recycled Matter . | . . . Retrieved Matter . | . . . Retrieved Components . | . . . Parts Scanalyzed . | . . . Part Schematics Acquired . | . . . Parts Damaged . | . . . Bothacking | -11 -10 -10 ------------ Run | Yrd Mat Sub Used RIF Installer . | . . . Robots Hacked . | . . . Non-combat . | . . . Combat . | . . . Robot Hacks Applied . | . . . Relay Couplers Released . | . . . Fabnet Peak Effective % . | . . . Robots Rewired . | . . . Allies Hacked . | . . . Hacks Repelled . | . . . Allies | -11 -10 -10 -------- Run | Yrd Mat Sub Total Allies . | . . . Largest Group . | . . . Highest-Rated Group . | . . . Highest-Rated Ally . | . . . Total Orders . | . . . Ally Attacks . | . . . Total Damage . | . . . Kills . | . . . Allies Corrupted . | . . . Allies Melted . | . . . Intel | -11 -10 -10 ------- Run | Yrd Mat Sub Robot Analysis Total . | . . . Derelict Logs Recovered 1 | . . 1 Drone Launches . | . . . Drone Recoveries . | . . . Exploration | -11 -10 -10 ------------- Run | Yrd Mat Sub Turns Passed 2800 | 153 914 1733 Spaces Moved 1561 | 76 473 1012 Core . | . . . Treads . | . . . Legs 164 | 76 88 . Wheels 1397 | . 385 1012 Hover . | . . . Flight . | . . . Fastest Speed 120 | 120 120 129 Average Speed 132 | 120 139 130 Slowest Speed 400 | 120 400 175 Overloaded Moves . | . . . Propulsion Burnouts . | . . . Robots Hopped . | . . . Cave-ins Triggered . | . . . Exploration Rate (%) 40 | 3 72 46 Regions Visited 2 Branch Regions 1 Pre-discovered Areas . | . . . Known Exits Taken . | . . . Unknown Exits Taken 2 | 1 1 . Scrap Searched 1 | . . 1 Spaces Dug 4 | . 2 2 Terrain Destroyed 4 | . 2 2 Melee 2 | . . 2 Projectile 2 | . 2 . AOE . | . . . Terrain Rammed . | . . . Walls Destroyed . | . . . Machines Disabled . | . . . Actions | -11 -10 -10 --------- Run | Yrd Mat Sub Total 2129 | 113 646 1370 Wait 405 | 19 107 279 Move 1559 | 75 472 1012 Hop . | . . . Pick Up 22 | 3 10 9 Fast Attach 4 | . . 4 Attach 13 | . 5 8 Detach 2 | . . 2 Swap 7 | . 3 4 Drop 20 | 2 4 14 Fire 78 | 14 45 19 Melee 19 | . . 19 Ram . | . . . Kick . | . . . Crush . | . . . Escape Stasis . | . . . Rewire . | . . . Trap . | . . . Miscellaneous . | . . . Route ------- -11/Scrapyard -10/Materials (discovered 4 exits: [*Mat x2] / [*Min] / *Sub) -10/Subcaves (discovered 2 exits: [*Mat x2]) History --------- Turn | Location | Event 1 | -11/Scrapyard | Discovered new exit (range 3) 154 | -11/Scrapyard | Entered Materials 314 | -10/Materials | Discovered new exit (range 6) 323 | -10/Materials | Build established: Mutant 735 | -10/Materials | Discovered new exit (range 12) 1034 | -10/Materials | Discovered new exit (range 8) 1044 | -10/Materials | Discovered new exit (range 13) 1068 | -10/Materials | Entered Subcaves 1213 | -10/Subcaves | Discovered new exit (range 3) 1310 | -10/Subcaves | Found SUBCON Basin 1385 | -10/Subcaves | A swath of the cavern ceiling suddenly collapsed 1620 | -10/Subcaves | Learned Materials terminal intel 1644 | -10/Subcaves | Shifting Twisted Machinery released Scrap Shield 1647 | -10/Subcaves | Shifting Twisted Machinery released Battle Rifle 2144 | -10/Subcaves | Discovered new exit (range 14) 2190 | -10/Subcaves | Shifting Twisted Machinery released Riot Gun 2191 | -10/Subcaves | Shifting Twisted Machinery released Riot Gun 2545 | -10/Subcaves | A swath of the cavern ceiling suddenly collapsed 2635 | -10/Subcaves | Core integrity fell below 50% 2790 | -10/Subcaves | A Subdweller sparked back to life 2790 | -10/Subcaves | A Subdweller sparked back to life 2799 | -10/Subcaves | Core integrity fell below 20% 2801 | -10/Subcaves | Destroyed by 7O-4MD(R) with Subdweller Machine Gun Last Messages --------------- 02666_ Acquired Seismic Detector. 02719_ Dropped Mak. Hammer. 02727_ N5-NRQ(R) misfires. 02738_ N5-NRQ(R) system terminally corrupted. 02738_ Disposable Heat Sink fried. 02745_ Acquired Mak. Hammer. 02750_ Acquired 30 matter. 02775_ Dropped Riot Gun. 02775_ Acquired Mak. Shrapnel Gun. 02790_ W9-S61(R) creaks and sparks as it begins to move. 02790_ 72-ROD(R) creaks and sparks as it begins to move. 02790_ Ion Engine destroyed. 02792_ Mak. Shrapnel Gun destroyed. 02792_ Sub. Monowheel destroyed. 02795_ Com. Wheel destroyed. 02795_ W9-S61(R) affixes Scrap Shield Fragment to Scrap Shield. 02799_ W9-S61(R) knocked back. Map ----- +----------------------------------------------------+ | ?????????????????????????????????????????????????? | | ?????????????????????????????????????????????????? | | ?????????????????????????????????????????????????? | | ?????????????????????????????????????????????????? | | ????????????????????????????#????????????????????? | | ????????????????????????????# ???????????????????? | | ????????????????????????????# #??????????????????? | | ????????????????????????????# ###???????????????? | | ????????????????????????????? ???????????????? | | ??????????????????????????????# ######??????????? | | ??????????????????????????????# # # ####????###? | | ??????????????????????????????# %& #??##&"?? | | ?????????????????????????????## ! ##??#!##"" | | ?????????????????#???????????# ## #?##%!&"# | | ?????????????????# ?????###### #### ####&####" | | ?????????????????# #??### # #??# ##"!#"#"## | | ??????????????????" ?# %* ##??## ""#"##"""# | | ??????????????????## ## [ =%##????##"#"###""#" | | ?????????????????##< ; ="#??????#######"#"# | | ???????????????### ;# " #??????????#""""# | | ????????? # # ##"" #???????#"##### | | ???????? ;####"" "#??????###???? | | ???????? #??""" #????????????? | | ???????? # ##### ; ;##?? ""##????????????? | | ?????????????????## ; #???????????????????? | | ??????????????????# #;; @ ##???????????????????? | | ??????????????? #;; ##????????????????????? | | ??????????????# # ###R R ????????????????????? | | ?????????????# ???< <<"???????????????????? | | ???????????? ??? "" ??????????????????? | | ????????????? ??? < ####?????????????????? | | ???????????? ##??? R<